[Event "Titled Tuesday Blitz February 07 Early 2023"]
[White "Bashirli, Saadat"]
[Black "Necula, Iulian"]
[WhiteFideId "13429990"]
[BlackFideId "1232380"]
[WhiteElo "1571"]
[BlackElo "1851"]
[Result "1/2-1/2"]
[Round "07"]
[TimeControl "180+2"]
[Date "2023.02.07"]
[WhiteClock "0:01:06"]
[BlackClock "0:01:06"]

1. e4 {[%clk 0:03:00]}  c5 {[%clk 0:02:59]} 2. Nf3 {[%clk 0:03:01]}  d6 {[%clk 0:02:59]} 3. Bb5+ {[%clk 0:03:01]}  Bd7 {[%clk 0:02:59]} 4. Bxd7+ {[%clk 0:03:01]}  Qxd7 {[%clk 0:03:00]} 5. c4 {[%clk 0:03:01]}  g6 {[%clk 0:03:00]} 6. O-O {[%clk 0:03:01]}  Bg7 {[%clk 0:03:00]} 7. Nc3 {[%clk 0:03:01]}  Nf6 {[%clk 0:03:00]} 8. Re1 {[%clk 0:03:01]}  Nc6 {[%clk 0:03:00]} 9. d4 {[%clk 0:03:02]}  cxd4 {[%clk 0:03:00]} 10. Nxd4 {[%clk 0:03:02]}  O-O {[%clk 0:02:59]} 11. Be3 {[%clk 0:03:01]}  Ng4 {[%clk 0:02:56]} 12. Nxc6 {[%clk 0:02:59]}  Nxe3 {[%clk 0:02:54]} 13. Rxe3 {[%clk 0:03:00]}  bxc6 {[%clk 0:02:53]} 14. c5 {[%clk 0:02:57]}  Rab8 {[%clk 0:02:49]} 15. cxd6 {[%clk 0:02:54]}  exd6 {[%clk 0:02:49]} 16. Qd2 {[%clk 0:02:52]}  Qe6 {[%clk 0:02:31]} 17. Rd3 {[%clk 0:02:44]}  Rfd8 {[%clk 0:02:29]} 18. Re1 {[%clk 0:02:42]}  Rb4 {[%clk 0:02:22]} 19. f3 {[%clk 0:02:39]}  Rb7 {[%clk 0:02:05]} 20. Rd1 {[%clk 0:02:37]}  Rbd7 {[%clk 0:02:04]} 21. b3 {[%clk 0:02:28]}  h5 {[%clk 0:01:50]} 22. Ne2 {[%clk 0:02:16]}  Qf6 {[%clk 0:01:36]} 23. Qc2 {[%clk 0:02:13]}  d5 {[%clk 0:01:35]} 24. exd5 {[%clk 0:02:08]}  Rxd5 {[%clk 0:01:35]} 25. Rxd5 {[%clk 0:02:07]}  Rxd5 {[%clk 0:01:35]} 26. Rxd5 {[%clk 0:02:02]}  cxd5 {[%clk 0:01:36]} 27. Qd2 {[%clk 0:01:58]}  Qa1+ {[%clk 0:01:35]} 28. Kf2 {[%clk 0:01:56]}  Qe5 {[%clk 0:01:32]} 29. g3 {[%clk 0:01:50]}  d4 {[%clk 0:01:32]} 30. Qd3 {[%clk 0:01:49]}  Qc5 {[%clk 0:01:27]} 31. Kg2 {[%clk 0:01:41]}  Kh7 {[%clk 0:01:25]} 32. Kf2 {[%clk 0:01:40]}  h4 {[%clk 0:01:23]} 33. Kg2 {[%clk 0:01:38]}  Be5 {[%clk 0:01:12]} 34. Qe4 {[%clk 0:01:33]}  hxg3 {[%clk 0:01:09]} 35. hxg3 {[%clk 0:01:34]}  Bg7 {[%clk 0:01:07]} 36. Qh4+ {[%clk 0:01:29]}  Kg8 {[%clk 0:01:05]} 37. Qd8+ {[%clk 0:01:28]}  Kh7 {[%clk 0:01:06]} 38. Qh4+ {[%clk 0:01:26]}  Kg8 {[%clk 0:01:06]} 39. Qd8+ {[%clk 0:01:26]}  Kh7 {[%clk 0:01:06]} 40. Qh4+ {[%clk 0:01:06]} 1/2-1/2


[Site "https://www.chess.com"]

[Event "Titled Tuesday Blitz February 07 Early 2023"]
[White "Bolanos, Fernando"]
[Black "Mohammadian, Mohammad"]
[WhiteFideId "3304094"]
[BlackFideId "12566055"]
[WhiteElo "2248"]
[BlackElo "1398"]
[Result "1-0"]
[Round "07"]
[TimeControl "180+2"]
[Date "2023.02.07"]
[WhiteClock "0:01:26"]
[BlackClock "0:01:05"]

1. e4 {[%clk 0:02:56]}  e5 {[%clk 0:02:59]} 2. Nf3 {[%clk 0:02:55]}  Nc6 {[%clk 0:02:58]} 3. Bc4 {[%clk 0:02:55]}  Bc5 {[%clk 0:02:57]} 4. c3 {[%clk 0:02:56]}  Nf6 {[%clk 0:02:56]} 5. d4 {[%clk 0:02:57]}  exd4 {[%clk 0:02:56]} 6. b4 {[%clk 0:02:57]}  Bb6 {[%clk 0:02:51]} 7. e5 {[%clk 0:02:58]}  d5 {[%clk 0:02:49]} 8. exf6 {[%clk 0:02:58]}  dxc4 {[%clk 0:02:48]} 9. Qe2+ {[%clk 0:02:59]}  Be6 {[%clk 0:02:43]} 10. fxg7 {[%clk 0:02:58]}  Rg8 {[%clk 0:02:43]} 11. b5 {[%clk 0:02:58]}  d3 {[%clk 0:02:32]} 12. Qe4 {[%clk 0:02:57]}  Ne7 {[%clk 0:02:20]} 13. Qxh7 {[%clk 0:02:57]}  Qd5 {[%clk 0:02:05]} 14. O-O {[%clk 0:02:00]}  O-O-O {[%clk 0:02:00]} 15. Bg5 {[%clk 0:02:00]}  Bc5 {[%clk 0:01:40]} 16. Nbd2 {[%clk 0:01:48]}  Rde8 {[%clk 0:01:40]} 17. Ne4 {[%clk 0:01:39]}  Ng6 {[%clk 0:01:37]} 18. Nf6 {[%clk 0:01:32]}  Qd8 {[%clk 0:01:16]} 19. Nxg8 {[%clk 0:01:30]}  Bxf2+ {[%clk 0:01:12]} 20. Rxf2 {[%clk 0:01:29]}  Qd6 {[%clk 0:01:11]} 21. Nf6 {[%clk 0:01:28]}  d2 {[%clk 0:01:08]} 22. Nxe8 {[%clk 0:01:27]}  Kd7 {[%clk 0:01:05]} 23. Nxd6 {[%clk 0:01:26]}  cxd6 {[%clk 0:01:05]} 24. g8=Q {[%clk 0:01:26]} 1-0


[Site "https://www.chess.com"]

[Event "Titled Tuesday Blitz February 07 Early 2023"]
[White "Daneshvar, Bardiya"]
[Black "Kamsky, Gata"]
[WhiteFideId "12576468"]
[BlackFideId "2000024"]
[WhiteElo "2540"]
[BlackElo "2665"]
[Result "1-0"]
[Round "08"]
[TimeControl "180+2"]
[Date "2023.02.07"]
[WhiteClock "0:00:13"]
[BlackClock "0:00:02"]

1. Nf3 {[%clk 0:03:00]}  d5 {[%clk 0:02:58]} 2. e3 {[%clk 0:02:59]}  Nf6 {[%clk 0:02:57]} 3. c4 {[%clk 0:03:00]}  g6 {[%clk 0:02:51]} 4. cxd5 {[%clk 0:02:55]}  Bg7 {[%clk 0:02:49]} 5. Qa4+ {[%clk 0:02:53]}  Nbd7 {[%clk 0:02:37]} 6. e4 {[%clk 0:02:40]}  O-O {[%clk 0:02:36]} 7. Qc2 {[%clk 0:02:40]}  Re8 {[%clk 0:01:56]} 8. Nc3 {[%clk 0:02:35]}  Nf8 {[%clk 0:01:42]} 9. Bb5 {[%clk 0:02:28]}  Bd7 {[%clk 0:01:40]} 10. Bxd7 {[%clk 0:02:28]}  N6xd7 {[%clk 0:01:27]} 11. d4 {[%clk 0:02:18]}  e6 {[%clk 0:01:22]} 12. dxe6 {[%clk 0:02:18]}  Nxe6 {[%clk 0:01:22]} 13. Be3 {[%clk 0:02:17]}  c5 {[%clk 0:01:21]} 14. dxc5 {[%clk 0:02:09]}  Nexc5 {[%clk 0:01:21]} 15. O-O {[%clk 0:02:07]}  Bxc3 {[%clk 0:01:19]} 16. bxc3 {[%clk 0:02:04]}  Nxe4 {[%clk 0:01:18]} 17. Rad1 {[%clk 0:02:04]}  Qc7 {[%clk 0:01:17]} 18. Nd4 {[%clk 0:02:02]}  Nxc3 {[%clk 0:01:09]} 19. Rc1 {[%clk 0:01:56]}  Rac8 {[%clk 0:01:08]} 20. Qb3 {[%clk 0:01:46]}  Qc4 {[%clk 0:00:33]} 21. Qxb7 {[%clk 0:01:41]}  Nc5 {[%clk 0:00:30]} 22. Qxa7 {[%clk 0:01:35]}  Qxa2 {[%clk 0:00:28]} 23. Qxa2 {[%clk 0:01:08]}  Nxa2 {[%clk 0:00:27]} 24. Rc4 {[%clk 0:01:08]}  Nd3 {[%clk 0:00:27]} 25. Rxc8 {[%clk 0:01:03]}  Rxc8 {[%clk 0:00:26]} 26. h3 {[%clk 0:01:03]}  Nc3 {[%clk 0:00:25]} 27. Nf3 {[%clk 0:01:03]}  f5 {[%clk 0:00:23]} 28. Ra1 {[%clk 0:01:00]}  f4 {[%clk 0:00:22]} 29. Bd4 {[%clk 0:00:49]}  Ne2+ {[%clk 0:00:21]} 30. Kf1 {[%clk 0:00:48]}  Nxd4 {[%clk 0:00:21]} 31. Nxd4 {[%clk 0:00:49]}  Rc4 {[%clk 0:00:19]} 32. Ne6 {[%clk 0:00:44]}  Rc2 {[%clk 0:00:19]} 33. f3 {[%clk 0:00:37]}  h6 {[%clk 0:00:17]} 34. Ra7 {[%clk 0:00:31]}  Rf2+ {[%clk 0:00:15]} 35. Kg1 {[%clk 0:00:31]}  g5 {[%clk 0:00:11]} 36. Rg7+ {[%clk 0:00:24]}  Kh8 {[%clk 0:00:11]} 37. Rg6 {[%clk 0:00:25]}  Kh7 {[%clk 0:00:08]} 38. Nf8+ {[%clk 0:00:22]}  Kh8 {[%clk 0:00:09]} 39. Rxh6+ {[%clk 0:00:23]}  Kg7 {[%clk 0:00:09]} 40. Rd6 {[%clk 0:00:23]}  Kxf8 {[%clk 0:00:04]} 41. Rxd3 {[%clk 0:00:23]}  Rb2 {[%clk 0:00:04]} 42. Rd5 {[%clk 0:00:24]}  Kf7 {[%clk 0:00:02]} 43. Rxg5 {[%clk 0:00:24]}  Kf6 {[%clk 0:00:03]} 44. Ra5 {[%clk 0:00:24]}  Rc2 {[%clk 0:00:02]} 45. Kh2 {[%clk 0:00:24]}  Rc8 {[%clk 0:00:02]} 46. Ra6+ {[%clk 0:00:17]}  Kf5 {[%clk 0:00:02]} 47. Ra5+ {[%clk 0:00:18]}  Kf6 {[%clk 0:00:02]} 48. h4 {[%clk 0:00:18]}  Rg8 {[%clk 0:00:02]} 49. Rb5 {[%clk 0:00:16]}  Rg7 {[%clk 0:00:02]} 50. Rb8 {[%clk 0:00:13]} 1-0


[Site "https://www.chess.com"]

[Event "Titled Tuesday Blitz February 07 Early 2023"]
[White "Rakhmanov, Aleksandr"]
[Black "Zierk, Steven"]
[WhiteFideId "4173708"]
[BlackFideId "2034255"]
[WhiteElo "2632"]
[BlackElo "2488"]
[Result "1-0"]
[Round "08"]
[TimeControl "180+2"]
[Date "2023.02.07"]
[WhiteClock "0:00:07"]
[BlackClock "0:00:03"]

1. c4 {[%clk 0:03:00]}  e6 {[%clk 0:02:59]} 2. e4 {[%clk 0:02:57]}  d5 {[%clk 0:02:58]} 3. exd5 {[%clk 0:02:58]}  exd5 {[%clk 0:02:59]} 4. d4 {[%clk 0:02:58]}  Nf6 {[%clk 0:02:58]} 5. Nc3 {[%clk 0:02:59]}  Bb4 {[%clk 0:02:54]} 6. Bd3 {[%clk 0:02:59]}  dxc4 {[%clk 0:02:53]} 7. Bxc4 {[%clk 0:03:00]}  O-O {[%clk 0:02:53]} 8. Ne2 {[%clk 0:03:00]}  Nbd7 {[%clk 0:02:39]} 9. O-O {[%clk 0:02:59]}  Nb6 {[%clk 0:02:39]} 10. Bb3 {[%clk 0:02:59]}  c6 {[%clk 0:02:37]} 11. Re1 {[%clk 0:02:50]}  Re8 {[%clk 0:02:35]} 12. Bg5 {[%clk 0:02:46]}  Bf5 {[%clk 0:02:25]} 13. Bxf7+ {[%clk 0:02:15]}  Kxf7 {[%clk 0:02:20]} 14. Qb3+ {[%clk 0:02:15]}  Nbd5 {[%clk 0:02:13]} 15. Nxd5 {[%clk 0:02:14]}  Qxd5 {[%clk 0:00:29]} 16. Qxb4 {[%clk 0:02:13]}  Ne4 {[%clk 0:00:20]} 17. Qxb7+ {[%clk 0:02:00]}  Kg8 {[%clk 0:00:20]} 18. Bf4 {[%clk 0:01:47]}  Nf6 {[%clk 0:00:20]} 19. Be5 {[%clk 0:01:35]}  Nd7 {[%clk 0:00:20]} 20. Nc3 {[%clk 0:01:17]}  Qc4 {[%clk 0:00:17]} 21. Qb3 {[%clk 0:00:55]}  Qxb3 {[%clk 0:00:16]} 22. axb3 {[%clk 0:00:56]}  a5 {[%clk 0:00:16]} 23. f3 {[%clk 0:00:48]}  Bc2 {[%clk 0:00:16]} 24. Ra3 {[%clk 0:00:45]}  c5 {[%clk 0:00:16]} 25. Kf2 {[%clk 0:00:45]}  cxd4 {[%clk 0:00:15]} 26. Bxd4 {[%clk 0:00:46]}  Rxe1 {[%clk 0:00:16]} 27. Kxe1 {[%clk 0:00:47]}  Nb8 {[%clk 0:00:14]} 28. Kd2 {[%clk 0:00:38]}  Bg6 {[%clk 0:00:14]} 29. Ne4 {[%clk 0:00:32]}  Nc6 {[%clk 0:00:14]} 30. Bc3 {[%clk 0:00:33]}  Rd8+ {[%clk 0:00:13]} 31. Ke3 {[%clk 0:00:27]}  Rd5 {[%clk 0:00:13]} 32. Ra1 {[%clk 0:00:25]}  Rb5 {[%clk 0:00:13]} 33. Nd6 {[%clk 0:00:18]}  Rxb3 {[%clk 0:00:12]} 34. Nc4 {[%clk 0:00:19]}  Rb8 {[%clk 0:00:04]} 35. Nxa5 {[%clk 0:00:17]}  Re8+ {[%clk 0:00:04]} 36. Kf2 {[%clk 0:00:17]}  Ra8 {[%clk 0:00:05]} 37. Ra3 {[%clk 0:00:16]}  Ne7 {[%clk 0:00:04]} 38. Nc4 {[%clk 0:00:15]}  Rb8 {[%clk 0:00:04]} 39. Ne3 {[%clk 0:00:14]}  Rb7 {[%clk 0:00:04]} 40. Ra8+ {[%clk 0:00:14]}  Kf7 {[%clk 0:00:04]} 41. Ra5 {[%clk 0:00:15]}  Nc6 {[%clk 0:00:04]} 42. Rc5 {[%clk 0:00:16]}  Nd8 {[%clk 0:00:04]} 43. h4 {[%clk 0:00:16]}  Ne6 {[%clk 0:00:04]} 44. Ra5 {[%clk 0:00:16]}  Bd3 {[%clk 0:00:05]} 45. g4 {[%clk 0:00:14]}  h6 {[%clk 0:00:05]} 46. h5 {[%clk 0:00:14]}  Rd7 {[%clk 0:00:04]} 47. Nf5 {[%clk 0:00:14]}  Kg8 {[%clk 0:00:02]} 48. Ra8+ {[%clk 0:00:14]}  Kh7 {[%clk 0:00:02]} 49. Ra5 {[%clk 0:00:15]}  Ng5 {[%clk 0:00:02]} 50. Nxg7 {[%clk 0:00:11]}  Rxg7 {[%clk 0:00:02]} 51. Bxg7 {[%clk 0:00:12]}  Kxg7 {[%clk 0:00:03]} 52. Ke3 {[%clk 0:00:11]}  Bf1 {[%clk 0:00:02]} 53. b4 {[%clk 0:00:08]}  Bg2 {[%clk 0:00:02]} 54. f4 {[%clk 0:00:08]}  Nf7 {[%clk 0:00:03]} 55. Ra7 {[%clk 0:00:08]}  Kf6 {[%clk 0:00:03]} 56. b5 {[%clk 0:00:08]}  Nd6 {[%clk 0:00:03]} 57. Ra6 {[%clk 0:00:08]}  Ke7 {[%clk 0:00:02]} 58. Rxd6 {[%clk 0:00:07]}  Kxd6 {[%clk 0:00:02]} 59. g5 {[%clk 0:00:08]}  hxg5 {[%clk 0:00:02]} 60. h6 {[%clk 0:00:08]}  Ke6 {[%clk 0:00:03]} 61. h7 {[%clk 0:00:07]} 1-0


[Site "https://www.chess.com"]

[Event "Titled Tuesday Blitz February 07 Early 2023"]
[White "Korobov, Anton"]
[Black "Zemlyanskii, Ivan"]
[WhiteFideId "14105730"]
[BlackFideId "24249971"]
[WhiteElo "2664"]
[BlackElo "2300"]
[Result "1-0"]
[Round "08"]
[TimeControl "180+2"]
[Date "2023.02.07"]
[WhiteClock "0:00:30"]
[BlackClock "0:00:03"]

1. d4 {[%clk 0:03:00]}  Nc6 {[%clk 0:02:57]} 2. Nf3 {[%clk 0:03:00]}  d6 {[%clk 0:02:53]} 3. c4 {[%clk 0:02:59]}  e5 {[%clk 0:02:52]} 4. Nc3 {[%clk 0:02:59]}  Nf6 {[%clk 0:02:49]} 5. d5 {[%clk 0:02:54]}  Ne7 {[%clk 0:02:49]} 6. e4 {[%clk 0:02:54]}  Ng6 {[%clk 0:02:43]} 7. g3 {[%clk 0:02:46]}  Be7 {[%clk 0:02:29]} 8. h4 {[%clk 0:02:39]}  h6 {[%clk 0:02:26]} 9. Be2 {[%clk 0:02:32]}  Bg4 {[%clk 0:02:24]} 10. Be3 {[%clk 0:02:29]}  O-O {[%clk 0:02:07]} 11. Nd2 {[%clk 0:02:23]}  Bxe2 {[%clk 0:02:00]} 12. Qxe2 {[%clk 0:02:24]}  h5 {[%clk 0:01:59]} 13. f3 {[%clk 0:02:17]}  c6 {[%clk 0:01:57]} 14. O-O-O {[%clk 0:02:12]}  Rc8 {[%clk 0:01:50]} 15. Kb1 {[%clk 0:02:05]}  Qa5 {[%clk 0:01:44]} 16. a3 {[%clk 0:01:48]}  Qa6 {[%clk 0:01:39]} 17. Na2 {[%clk 0:01:36]}  Qa4 {[%clk 0:01:24]} 18. Rc1 {[%clk 0:01:32]}  Rc7 {[%clk 0:01:04]} 19. Rc3 {[%clk 0:01:26]}  Rfc8 {[%clk 0:01:02]} 20. Rhc1 {[%clk 0:01:27]}  c5 {[%clk 0:01:00]} 21. Rb3 {[%clk 0:01:17]}  a6 {[%clk 0:00:52]} 22. Nc3 {[%clk 0:01:15]}  Qe8 {[%clk 0:00:52]} 23. a4 {[%clk 0:01:11]}  Bd8 {[%clk 0:00:48]} 24. Nf1 {[%clk 0:01:00]}  Rd7 {[%clk 0:00:46]} 25. Bg5 {[%clk 0:01:00]}  Nh7 {[%clk 0:00:32]} 26. Bxd8 {[%clk 0:01:00]}  Qxd8 {[%clk 0:00:33]} 27. Ne3 {[%clk 0:01:01]}  Nf6 {[%clk 0:00:29]} 28. Qd2 {[%clk 0:00:58]}  Qa5 {[%clk 0:00:27]} 29. Nf5 {[%clk 0:00:56]}  Ne7 {[%clk 0:00:27]} 30. g4 {[%clk 0:00:53]}  hxg4 {[%clk 0:00:22]} 31. fxg4 {[%clk 0:00:54]}  Nxf5 {[%clk 0:00:20]} 32. exf5 {[%clk 0:00:48]}  Nxg4 {[%clk 0:00:15]} 33. Rg1 {[%clk 0:00:47]}  Nf6 {[%clk 0:00:12]} 34. Qg5 {[%clk 0:00:41]}  Kf8 {[%clk 0:00:13]} 35. h5 {[%clk 0:00:41]}  Ne8 {[%clk 0:00:05]} 36. h6 {[%clk 0:00:39]}  gxh6 {[%clk 0:00:06]} 37. Qxh6+ {[%clk 0:00:39]}  Ke7 {[%clk 0:00:07]} 38. Rg8 {[%clk 0:00:36]}  Qc7 {[%clk 0:00:05]} 39. Qf8+ {[%clk 0:00:33]}  Kf6 {[%clk 0:00:05]} 40. Ne4+ {[%clk 0:00:32]}  Kxf5 {[%clk 0:00:01]} 41. Ng3+ {[%clk 0:00:32]}  Kf6 {[%clk 0:00:01]} 42. Nh5+ {[%clk 0:00:32]}  Kf5 {[%clk 0:00:01]} 43. Qh6 {[%clk 0:00:32]}  Ke4 {[%clk 0:00:02]} 44. Qe3+ {[%clk 0:00:30]}  Kf5 {[%clk 0:00:03]} 45. Qf3# {[%clk 0:00:30]} 1-0


[Site "https://www.chess.com"]

[Event "Titled Tuesday Blitz February 07 Early 2023"]
[White "Zahid, Sanatan"]
[Black "Kollars, Dmitrij"]
[WhiteFideId "10201963"]
[BlackFideId "12909572"]
[WhiteElo "1930"]
[BlackElo "2607"]
[Result "1-0"]
[Round "08"]
[TimeControl "180+2"]
[Date "2023.02.07"]
[WhiteClock "0:00:40"]
[BlackClock "0:00:06"]

1. d4 {[%clk 0:03:00]}  Nf6 {[%clk 0:02:57]} 2. Nc3 {[%clk 0:03:01]}  d5 {[%clk 0:02:57]} 3. Bf4 {[%clk 0:03:01]}  c5 {[%clk 0:02:56]} 4. e4 {[%clk 0:03:01]}  Nxe4 {[%clk 0:02:55]} 5. Nxe4 {[%clk 0:03:01]}  dxe4 {[%clk 0:02:56]} 6. dxc5 {[%clk 0:03:02]}  Qa5+ {[%clk 0:02:55]} 7. c3 {[%clk 0:03:03]}  Qxc5 {[%clk 0:02:54]} 8. Qa4+ {[%clk 0:03:03]}  Nc6 {[%clk 0:02:55]} 9. Qxe4 {[%clk 0:03:03]}  g6 {[%clk 0:02:55]} 10. Nf3 {[%clk 0:03:03]}  Bg7 {[%clk 0:02:54]} 11. Qe3 {[%clk 0:03:03]}  Qxe3+ {[%clk 0:02:53]} 12. Bxe3 {[%clk 0:03:04]}  Bf5 {[%clk 0:02:48]} 13. O-O-O {[%clk 0:03:03]}  O-O {[%clk 0:02:47]} 14. Nd4 {[%clk 0:03:00]}  Nxd4 {[%clk 0:02:35]} 15. Bxd4 {[%clk 0:03:01]}  Bh6+ {[%clk 0:02:35]} 16. Be3 {[%clk 0:02:59]}  Bxe3+ {[%clk 0:02:34]} 17. fxe3 {[%clk 0:03:00]}  Be4 {[%clk 0:02:29]} 18. Rg1 {[%clk 0:02:31]}  Rfd8 {[%clk 0:02:25]} 19. Rd4 {[%clk 0:02:31]}  Bc6 {[%clk 0:02:07]} 20. Be2 {[%clk 0:02:10]}  e5 {[%clk 0:02:06]} 21. Rxd8+ {[%clk 0:02:10]}  Rxd8 {[%clk 0:02:07]} 22. g4 {[%clk 0:02:06]}  Kg7 {[%clk 0:02:02]} 23. Rd1 {[%clk 0:02:05]}  Re8 {[%clk 0:02:00]} 24. b4 {[%clk 0:02:04]}  Re7 {[%clk 0:01:45]} 25. Kb2 {[%clk 0:02:02]}  f5 {[%clk 0:01:45]} 26. b5 {[%clk 0:01:57]}  Be4 {[%clk 0:01:44]} 27. gxf5 {[%clk 0:01:56]}  gxf5 {[%clk 0:01:45]} 28. c4 {[%clk 0:01:56]}  b6 {[%clk 0:01:43]} 29. Kc3 {[%clk 0:01:54]}  Kf6 {[%clk 0:01:38]} 30. a4 {[%clk 0:01:17]}  f4 {[%clk 0:01:33]} 31. a5 {[%clk 0:01:18]}  Kf5 {[%clk 0:01:23]} 32. exf4 {[%clk 0:01:11]}  exf4 {[%clk 0:01:20]} 33. axb6 {[%clk 0:01:10]}  axb6 {[%clk 0:01:21]} 34. Rd6 {[%clk 0:01:11]}  f3 {[%clk 0:01:15]} 35. Bf1 {[%clk 0:01:11]}  Rg7 {[%clk 0:00:57]} 36. Kd4 {[%clk 0:01:10]}  Rg6 {[%clk 0:00:25]} 37. Rd7 {[%clk 0:01:05]}  Rh6 {[%clk 0:00:13]} 38. Rf7+ {[%clk 0:00:55]}  Ke6 {[%clk 0:00:13]} 39. Rc7 {[%clk 0:00:56]}  Kf5 {[%clk 0:00:11]} 40. Ke3 {[%clk 0:00:52]}  Rxh2 {[%clk 0:00:08]} 41. c5 {[%clk 0:00:52]}  Rb2 {[%clk 0:00:06]} 42. cxb6 {[%clk 0:00:50]}  Rb3+ {[%clk 0:00:06]} 43. Kd4 {[%clk 0:00:49]}  Rb4+ {[%clk 0:00:06]} 44. Kc3 {[%clk 0:00:48]}  Rb1 {[%clk 0:00:06]} 45. b7 {[%clk 0:00:46]}  Bxb7 {[%clk 0:00:05]} 46. Bd3+ {[%clk 0:00:43]}  Be4 {[%clk 0:00:04]} 47. Bxb1 {[%clk 0:00:43]}  Bxb1 {[%clk 0:00:05]} 48. Kd4 {[%clk 0:00:41]}  Kf4 {[%clk 0:00:05]} 49. b6 {[%clk 0:00:40]}  f2 {[%clk 0:00:05]} 50. Rc1 {[%clk 0:00:38]}  Be4 {[%clk 0:00:04]} 51. Rf1 {[%clk 0:00:39]}  Kf3 {[%clk 0:00:04]} 52. Rxf2+ {[%clk 0:00:38]}  Kxf2 {[%clk 0:00:05]} 53. Kxe4 {[%clk 0:00:39]}  h5 {[%clk 0:00:05]} 54. b7 {[%clk 0:00:38]}  h4 {[%clk 0:00:05]} 55. b8=Q {[%clk 0:00:39]}  Kg2 {[%clk 0:00:05]} 56. Qg8+ {[%clk 0:00:39]}  Kh2 {[%clk 0:00:05]} 57. Kf3 {[%clk 0:00:39]}  h3 {[%clk 0:00:06]} 58. Kf2 {[%clk 0:00:39]}  Kh1 {[%clk 0:00:06]} 59. Qg1# {[%clk 0:00:40]} 1-0


[Site "https://www.chess.com"]

[Event "Titled Tuesday Blitz February 07 Early 2023"]
[White "Bruzon Batista, Lazaro"]
[Black "Grigorjev, Iljya"]
[WhiteFideId "3503739"]
[BlackFideId "24159565"]
[WhiteElo "2611"]
[BlackElo "2426"]
[Result "1-0"]
[Round "08"]
[TimeControl "180+2"]
[Date "2023.02.07"]
[WhiteClock "0:01:20"]
[BlackClock "0:00:04"]

1. e4 {[%clk 0:03:00]}  e5 {[%clk 0:03:00]} 2. Nf3 {[%clk 0:03:00]}  Nc6 {[%clk 0:03:00]} 3. Bb5 {[%clk 0:03:00]}  a6 {[%clk 0:03:00]} 4. Ba4 {[%clk 0:03:00]}  Nf6 {[%clk 0:03:01]} 5. O-O {[%clk 0:02:59]}  b5 {[%clk 0:03:02]} 6. Bb3 {[%clk 0:02:58]}  Bc5 {[%clk 0:03:03]} 7. d3 {[%clk 0:02:52]}  d6 {[%clk 0:03:02]} 8. a4 {[%clk 0:02:48]}  Rb8 {[%clk 0:03:00]} 9. axb5 {[%clk 0:02:47]}  axb5 {[%clk 0:03:01]} 10. Nc3 {[%clk 0:02:45]}  Bg4 {[%clk 0:02:55]} 11. Be3 {[%clk 0:02:44]}  Nd4 {[%clk 0:02:50]} 12. Bxd4 {[%clk 0:02:44]}  Bxd4 {[%clk 0:02:51]} 13. h3 {[%clk 0:02:44]}  Bxf3 {[%clk 0:02:49]} 14. Qxf3 {[%clk 0:02:43]}  O-O {[%clk 0:02:46]} 15. Ra2 {[%clk 0:02:41]}  Nd7 {[%clk 0:02:37]} 16. Ne2 {[%clk 0:02:37]}  Nc5 {[%clk 0:02:31]} 17. Nxd4 {[%clk 0:02:34]}  exd4 {[%clk 0:02:32]} 18. Bd5 {[%clk 0:02:31]}  Na4 {[%clk 0:02:22]} 19. Rfa1 {[%clk 0:02:24]}  Qd7 {[%clk 0:02:18]} 20. Qg4 {[%clk 0:02:18]}  Qxg4 {[%clk 0:02:04]} 21. hxg4 {[%clk 0:02:18]}  Rb6 {[%clk 0:02:05]} 22. b4 {[%clk 0:02:10]}  Rfb8 {[%clk 0:01:44]} 23. Bb3 {[%clk 0:02:06]}  Kf8 {[%clk 0:01:44]} 24. f4 {[%clk 0:02:02]}  Nc3 {[%clk 0:01:12]} 25. Ra7 {[%clk 0:02:00]}  R6b7 {[%clk 0:01:08]} 26. Kf2 {[%clk 0:01:50]}  c5 {[%clk 0:01:07]} 27. bxc5 {[%clk 0:01:40]}  dxc5 {[%clk 0:01:08]} 28. e5 {[%clk 0:01:40]}  Ke7 {[%clk 0:00:51]} 29. R1a6 {[%clk 0:01:30]}  Nd1+ {[%clk 0:00:44]} 30. Kf3 {[%clk 0:01:29]}  Ne3 {[%clk 0:00:44]} 31. f5 {[%clk 0:01:23]}  c4 {[%clk 0:00:43]} 32. dxc4 {[%clk 0:01:19]}  bxc4 {[%clk 0:00:44]} 33. Ba4 {[%clk 0:01:19]}  f6 {[%clk 0:00:07]} 34. Bc6 {[%clk 0:01:19]}  Rxa7 {[%clk 0:00:03]} 35. Rxa7+ {[%clk 0:01:20]}  Kf8 {[%clk 0:00:04]} 36. e6 {[%clk 0:01:20]} 1-0


[Site "https://www.chess.com"]